bitfinex/quotes_BTCUSD_20251113
["timestamp","ask_amount","ask_price","bid_price","bid_amount"]
[1763045041033,0.21419415,102020.0,102010.0,0.05412]
[1763045041242,0.21419415,102020.0,102010.0,0.2730692]
[1763045041452,0.22303415,102020.0,102010.0,0.01765]
[1763045041669,0.23211956,102020.0,102010.0,0.01765]
[1763045042087,0.22327956,102020.0,102010.0,0.2730692]
[1763045042307,0.22327956,102020.0,102010.0,0.74450165]
[1763045042511,0.02723957,102020.0,102010.0,0.74450165]
[1763045042723,0.01815416,102020.0,102010.0,0.74450165]
[1763045042927,0.01815416,102020.0,102010.0,0.74574133]
[1763045043155,0.01815416,102020.0,102010.0,1.06974133]
[1763045043360,0.15816915,102050.0,102040.0,0.19600156]
[1763045043562,0.38155219,102050.0,102040.0,0.02289]
[1763045043773,0.38155219,102050.0,102030.0,0.23249077]
[1763045043977,0.19600156,102040.0,102030.0,0.03647]
[1763045044194,0.22326275,102040.0,102010.0,0.81844576]
[1763045044450,0.22326275,102040.0,102020.0,0.03647]
[1763045044451,0.26662275,102040.0,102020.0,0.03647]
[1763045044660,0.19602077,102030.0,102020.0,0.03647]
[1763045044868,0.22328196,102030.0,102020.0,0.03647]
[1763045045068,0.22328196,102030.0,102020.0,0.23250999]
[1763045045287,0.22328196,102030.0,102020.0,0.25679999]
[1763045045505,0.22328196,102030.0,102020.0,0.06076]
[1763045045745,0.22328196,102030.0,102020.0,0.25679999]
[1763045046370,0.22328196,102030.0,102020.0,0.02429]
[1763045046580,0.19603999,102020.0,102010.0,0.57148953]
[1763045046788,0.21421412,102020.0,102010.0,0.60526953]
[1763045047024,0.02727371,102020.0,102010.0,1.10099198]
[1763045047254,0.22331385,102020.0,102010.0,0.11050087]
[1763045047495,0.22331385,102020.0,102010.0,0.2717792]
[1763045047714,0.22331385,102020.0,102010.0,0.01765]
[1763045047919,0.28437385,102020.0,102010.0,0.01865]
[1763045048138,0.28437385,102020.0,102010.0,0.2147092]
[1763045048383,0.28437385,102020.0,102010.0,0.74421165]
[1763045048384,0.07063386,102020.0,102010.0,0.74421165]
[1763045048584,0.26670294,102020.0,102010.0,0.74421165]
[1763045049027,0.26670294,102020.0,102010.0,0.2727792]
[1763045049434,0.07066295,102020.0,102010.0,0.27401888]
[1763045049686,0.26670294,102020.0,102010.0,0.04417968]
[1763045049912,0.07066295,102020.0,102010.0,0.74545133]
[1763045050321,0.26670294,102020.0,102010.0,0.27401888]
[1763045050535,0.30724294,102020.0,102010.0,0.00223968]
[1763045050982,0.81245539,102020.0,102010.0,0.00223968]
[1763045051169,0.34102294,102020.0,102010.0,0.00223968]
[1763045051666,0.91062454,102020.0,102010.0,0.00223968]
[1763045052317,0.91062454,102020.0,102010.0,0.00123968]
[1763045052537,0.19612761,101980.0,101960.0,0.79820162]
[1763045052756,0.19613611,101970.0,101960.0,0.53999332]
[1763045053001,0.19615535,101960.0,101950.0,0.08529087]
[1763045053237,0.19617459,101950.0,101940.0,0.08703115]
[1763045053435,0.21437659,101950.0,101930.0,0.7211164]
[1763045053650,0.02728167,101950.0,101940.0,0.19619383]
[1763045053868,0.02728167,101950.0,101940.0,0.22997383]
[1763045054079,0.22345626,101950.0,101930.0,0.21537038]
[1763045054298,0.21437659,101950.0,101940.0,0.19619383]
[1763045054726,0.018202,101950.0,101940.0,0.19619383]
[1763045054933,0.21437659,101950.0,101940.0,0.19619383]
[1763045055374,0.21437659,101950.0,101930.0,0.0529373]
[1763045055583,0.23955383,101940.0,101930.0,0.0191573]
[1763045055800,0.23955383,101940.0,101930.0,0.0008673]
[1763045055801,0.78580828,101940.0,101930.0,0.0008673]
[1763045056048,0.7948705,101940.0,101930.0,0.0008673]
[1763045056309,1.16128924,101940.0,101930.0,0.0008673]
[1763045056954,0.68985679,101940.0,101930.0,0.0008673]
[1763045057165,1.16128924,101940.0,101930.0,0.0008673]
[1763045057597,0.24729805,101940.0,101930.0,0.19708038]
[1763045057809,0.062562,101940.0,101930.0,0.19708038]
[1763045058019,0.019202,101940.0,101930.0,0.25515038]
[1763045058225,0.062562,101940.0,101930.0,0.25515038]
[1763045058441,0.04436,101940.0,101930.0,0.25515038]
[1763045058650,0.24055383,101940.0,101930.0,0.02714284]
[1763045058862,0.25760612,101940.0,101930.0,0.19906592]
[1763045059071,0.04336,101940.0,101930.0,0.19906592]
[1763045059283,0.04636,101940.0,101930.0,0.23284592]
[1763045059499,0.003,101940.0,101930.0,0.25713592]
[1763045059711,0.23953639,101950.0,101930.0,0.25713592]
[1763045059712,0.23953459,101950.0,101940.0,0.19619383]
[1763045059925,0.002,101940.0,101930.0,0.0008673]
[1763045060126,0.002,101940.0,101930.0,0.23086001]
[1763045060355,0.002,101940.0,101930.0,0.25515001]
[1763045060576,0.23953484,101950.0,101930.0,0.25515001]
[1763045060989,0.19619383,101940.0,101930.0,0.22137038]
[1763045061171,0.19619383,101940.0,101930.0,0.0008673]
[1763045061400,0.04336,101950.0,101940.0,0.19619383]
[1763045061604,0.23953459,101950.0,101940.0,0.19619383]
[1763045061810,0.23953459,101950.0,101930.0,0.0346473]
[1763045062013,0.23953459,101950.0,101940.0,0.19619383]
[1763045062220,0.20594291,101970.0,101950.0,0.19617459]
[1763045062447,0.22396237,101970.0,101960.0,0.19615535]
[1763045062658,0.20594291,101970.0,101960.0,0.19615535]
[1763045062865,0.24930291,101970.0,101960.0,0.19615535]
[1763045063082,0.53179948,101980.0,101960.0,0.19615535]
[1763045063083,0.00406,101980.0,101970.0,0.19613611]
[1763045063304,0.30816432,101990.0,101980.0,0.19611688]
[1763045063514,0.19611688,101980.0,101970.0,0.72563856]
[1763045063779,0.34168711,101990.0,101980.0,0.19611688]
[1763045063992,0.09816915,101990.0,101980.0,0.27247688]
[1763045064207,0.04336,102000.0,101990.0,0.19608741]
[1763045064434,0.19609765,101990.0,101980.0,0.07650018]
[1763045064659,0.20015765,101990.0,101980.0,0.00014018]
[1763045064880,0.88781647,101990.0,101980.0,0.00014018]
[1763045065096,1.21081647,101990.0,101980.0,0.00014018]
[1763045065537,0.73938402,101990.0,101980.0,0.00014018]
[1763045065744,1.21081647,101990.0,101980.0,0.00014018]
[1763045066380,0.73938402,101990.0,101980.0,0.00014018]
[1763045066631,0.66218528,101990.0,101980.0,0.00014018]
[1763045066849,0.70554528,101990.0,101980.0,0.00014018]
[1763045067066,0.3376268,101990.0,101980.0,0.21454706]
[1763045067281,0.3396268,101990.0,101980.0,0.21454706]
[1763045067522,0.3396268,101990.0,101980.0,0.24832706]
[1763045067731,0.04536,101990.0,101980.0,0.27261706]
[1763045067945,0.002,101990.0,101980.0,0.27261706]
[1763045068152,0.24145765,101990.0,101980.0,0.07650018]
[1763045068360,0.24145765,101990.0,101980.0,0.27261706]
[1763045068809,0.04336,101990.0,101980.0,0.74404951]
[1763045069015,0.23943861,102000.0,101990.0,0.19609765]
[1763045069215,0.25748671,102000.0,101990.0,0.19609765]
[1763045069427,0.25748671,102000.0,101990.0,0.25416765]
[1763045069631,0.25748671,102000.0,101990.0,0.05807]
[1763045069863,0.19609765,101990.0,101980.0,0.00014018]
[1763045070083,0.21414575,101990.0,101980.0,0.00014018]
[1763045070498,0.21414575,101990.0,101980.0,0.00088439]
[1763045071132,0.83799735,101990.0,101980.0,0.00088439]
[1763045071312,1.20441609,101990.0,101980.0,0.00088439]
[1763045071546,1.21344877,101990.0,101980.0,0.00088439]
[1763045071754,0.74201632,101990.0,101980.0,1e-08]
[1763045071967,1.21344877,101990.0,101980.0,1e-08]
[1763045072592,0.19619383,101940.0,101930.0,0.0004]
[1763045072805,0.27203596,101940.0,101930.0,0.0008673]
[1763045074274,1.16513715,101940.0,101930.0,0.0008673]
[1763045074694,1.17417307,101940.0,101930.0,0.0008673]
[1763045075147,0.70274062,101940.0,101930.0,0.0008673]
[1763045075369,1.17417307,101940.0,101930.0,0.0008673]
[1763045075577,1.03410278,101910.0,101900.0,0.0002]
[1763045075783,0.68737838,101910.0,101900.0,0.00034022]
[1763045075999,0.56848964,101910.0,101900.0,0.00034022]
[1763045076247,1.11539209,101910.0,101900.0,0.00034022]
[1763045076457,0.61184964,101910.0,101900.0,0.00034022]
[1763045076668,1.11539209,101910.0,101900.0,0.00034022]
[1763045076873,1.15881083,101910.0,101900.0,0.00034022]
[1763045077309,0.71007753,101910.0,101900.0,0.00034022]
[1763045077512,1.25701998,101910.0,101900.0,0.00034022]
[1763045079025,1.25901998,101910.0,101900.0,0.00034022]
[1763045079247,1.21560124,101910.0,101900.0,0.00034022]
[1763045079458,0.86049124,101910.0,101900.0,0.00232664]
[1763045079663,0.31448287,101910.0,101900.0,0.00232664]
[1763045079885,0.06346213,101910.0,101900.0,0.22145749]
[1763045080098,0.06346213,101910.0,101900.0,0.25572749]
[1763045080308,0.02006213,101910.0,101900.0,0.25572749]
[1763045080543,0.21631372,101910.0,101900.0,0.05945664]
[1763045080766,0.02006213,101910.0,101900.0,0.19859749]
[1763045080976,0.02006213,101910.0,101900.0,0.25572749]
[1763045081597,0.01806213,101910.0,101900.0,0.25572749]
[1763045081854,0.0434,101920.0,101910.0,0.19625159]
[1763045082073,0.25770272,101920.0,101900.0,0.25373344]
[1763045082281,0.25770272,101920.0,101910.0,0.19625159]
[1763045082769,0.06147039,101920.0,101910.0,0.25338159]
[1763045082946,0.25770272,101920.0,101910.0,0.05713]
[1763045083210,0.25770272,101920.0,101900.0,0.00034022]
[1763045083211,0.19625159,101910.0,101900.0,0.00034022]
[1763045083411,0.21432198,101910.0,101900.0,0.00034022]
[1763045083639,0.68575443,101910.0,101900.0,0.00034022]
[1763045083858,0.21432198,101910.0,101900.0,0.00034022]
[1763045084081,0.68575443,101910.0,101900.0,0.00034022]
[1763045084293,0.70789443,101910.0,101900.0,0.00034022]
[1763045084518,0.74904106,101910.0,101900.0,0.00034022]
[1763045084967,0.7924598,101910.0,101900.0,0.00034022]
[1763045085395,0.7924598,101910.0,101890.0,0.0004]
[1763045085652,0.84026245,101900.0,101890.0,0.0004]
[1763045085872,0.89947947,101900.0,101890.0,0.0004]
[1763045086316,0.42804702,101900.0,101890.0,0.0004]
[1763045086547,0.86736947,101900.0,101890.0,0.0004]
[1763045086758,0.33039702,101900.0,101890.0,0.0004]
[1763045086975,1.35889374,101900.0,101890.0,0.0004]
[1763045088063,0.20632864,101870.0,101850.0,0.19636712]
[1763045088274,0.26779903,101870.0,101850.0,0.19650737]
[1763045088943,0.07147038,101870.0,101860.0,0.19634792]
[1763045089198,0.00999999,101880.0,101870.0,0.19631312]
[1763045089423,0.32310353,101900.0,101880.0,0.19630795]
[1763045089632,0.26833438,101900.0,101880.0,0.19630795]
[1763045089838,0.26833438,101900.0,101890.0,0.00223494]
[1763045089839,0.55054837,101900.0,101890.0,0.00223494]
[1763045090051,0.05339999,101900.0,101890.0,0.20680505]
[1763045090259,0.00999999,101900.0,101890.0,0.26393505]
[1763045090510,0.20627084,101900.0,101890.0,0.26393505]
[1763045090726,0.20627084,101900.0,101890.0,0.20680505]
[1763045091142,0.00999999,101900.0,101890.0,0.20680505]
[1763045091536,0.00999999,101900.0,101890.0,0.26393505]
[1763045091734,0.24965348,101910.0,101900.0,0.19627085]
[1763045092169,0.19627085,101900.0,101890.0,0.23884011]
[1763045092381,0.24965348,101910.0,101890.0,0.23884011]
[1763045092589,0.19627085,101900.0,101890.0,0.20457011]
[1763045092802,0.19627085,101900.0,101890.0,0.00828]
[1763045093007,0.22367084,101900.0,101880.0,0.00828]
[1763045093215,0.22367084,101900.0,101890.0,0.00828]
[1763045093444,0.20627084,101900.0,101890.0,0.00828]
[1763045093858,0.2062901,101890.0,101880.0,0.20472963]
[1763045094271,0.2062901,101890.0,101880.0,0.00842025]
[1763045095361,0.2062901,101890.0,101880.0,0.20472963]
[1763045095811,0.2062901,101890.0,101880.0,0.20572963]
[1763045096821,0.2062901,101890.0,101880.0,0.00942025]
[1763045096964,0.2062901,101890.0,101880.0,0.20572963]
[1763045097180,0.00999999,101890.0,101880.0,0.22858963]
[1763045097376,0.00999999,101890.0,101880.0,0.26285963]
[1763045097622,0.2062901,101890.0,101880.0,0.06903376]
[1763045097836,0.2496901,101890.0,101880.0,0.23107314]
[1763045097999,0.00999999,101890.0,101880.0,0.23107314]
[1763045098162,0.24965284,101910.0,101890.0,0.19627608]
[1763045098370,0.24965284,101910.0,101900.0,0.19627085]
[1763045098371,0.04063081,101910.0,101900.0,0.19627085]
[1763045098572,0.23688366,101910.0,101900.0,0.19627085]
[1763045099123,0.57622765,101910.0,101890.0,0.21283608]
[1763045099461,0.23688366,101910.0,101890.0,0.21283608]
[1763045099685,0.04163081,101910.0,101900.0,0.25340085]
[1763045099912,0.001,101910.0,101900.0,0.25340085]
[1763045100143,0.21675085,101900.0,101880.0,0.20472937]
[1763045100364,0.32561399,101900.0,101880.0,0.24709923]
[1763045100583,0.4785041,101890.0,101880.0,0.00014025]
[1763045100810,0.5471341,101890.0,101880.0,0.00014025]
[1763045101043,0.57430439,101890.0,101880.0,0.00014025]
[1763045101265,0.67247354,101890.0,101880.0,0.00014025]
[1763045101491,0.02717029,101890.0,101880.0,0.00014025]
[1763045101719,0.02717029,101890.0,101880.0,0.50696362]
[1763045101986,0.22347164,101890.0,101880.0,0.00014025]
[1763045102217,0.22347164,101890.0,101880.0,0.00114025]
[1763045102637,0.53374563,101890.0,101880.0,0.00014025]
[1763045102854,0.63431563,101890.0,101880.0,0.00014025]
[1763045103073,0.35210164,101890.0,101880.0,0.00014025]
[1763045103284,0.28347164,101890.0,101880.0,0.19644963]
[1763045103507,0.08718153,101890.0,101880.0,0.19644963]
[1763045103723,0.28347164,101890.0,101880.0,0.19644963]
[1763045103929,0.05601527,101890.0,101880.0,0.19644963]
[1763045104135,0.05601527,101890.0,101880.0,0.19893314]
[1763045104339,0.53451937,101890.0,101880.0,0.00262376]
[1763045104520,0.25230538,101890.0,101880.0,0.00262376]
[1763045105010,0.70131852,101890.0,101880.0,0.00262376]
[1763045105225,0.50295243,101890.0,101880.0,0.00262376]
[1763045105441,0.78516642,101890.0,101880.0,0.00262376]
[1763045105852,0.82858516,101890.0,101880.0,0.00262376]
[1763045106279,0.82858516,101890.0,101840.0,0.02641057]
[1763045106280,0.19634792,101860.0,101840.0,0.02641057]
[1763045106485,0.09642,101850.0,101840.0,0.0004669]
[1763045106698,0.3345272,101850.0,101840.0,0.0004669]
[1763045106904,0.61674119,101850.0,101840.0,0.0004669]
[1763045107530,0.3345272,101850.0,101840.0,0.0004669]
[1763045107955,0.61674119,101850.0,101840.0,0.0004669]
[1763045108170,0.3345272,101850.0,101840.0,0.19685338]
[1763045108387,0.02268,101850.0,101840.0,0.19685338]
[1763045108612,0.30433446,101860.0,101850.0,0.1963672]
[1763045108613,0.14156915,101860.0,101850.0,0.1963672]
[1763045108834,0.14156915,101860.0,101850.0,0.47858119]
[1763045109056,0.0434,101860.0,101850.0,0.55203119]
[1763045109540,0.0434,101860.0,101850.0,0.2265472]
[1763045109753,0.24788592,101870.0,101850.0,0.1963672]
[1763045109963,0.0434,101860.0,101850.0,0.1963672]
[1763045110599,0.0434,101860.0,101850.0,0.2698172]
[1763045110815,0.23974792,101860.0,101850.0,0.03018]
[1763045111023,0.23974792,101860.0,101840.0,0.22326395]
[1763045111203,0.0434,101860.0,101850.0,0.1963672]
[1763045111409,0.23974792,101860.0,101840.0,0.54874794]
[1763045111619,0.1963672,101850.0,101840.0,0.0004669]
[1763045111828,0.1963672,101850.0,101840.0,0.19685338]
[1763045112033,0.14156915,101860.0,101850.0,0.1963672]
[1763045112289,0.27059183,101880.0,101850.0,0.55203119]
[1763045112508,0.19634792,101860.0,101850.0,0.1963672]
[1763045112715,0.19633302,101870.0,101850.0,0.1963672]
[1763045112920,0.19634792,101860.0,101850.0,0.1963672]
[1763045113599,0.19633302,101870.0,101850.0,0.1963672]
[1763045113815,0.19633302,101870.0,101860.0,0.19634792]
[1763045114049,0.27054517,101880.0,101870.0,0.19632865]
[1763045114260,0.22665451,101910.0,101890.0,0.19629011]
[1763045114479,0.02048,101910.0,101900.0,0.19627085]
[1763045114755,0.20613383,101920.0,101900.0,0.49259484]
[1763045114998,0.09816915,101930.0,101910.0,0.19623952]
[1763045115240,0.14156915,101930.0,101920.0,0.21073233]
[1763045115479,0.0434,101940.0,101930.0,0.19621308]
[1763045115683,0.04353939,101940.0,101930.0,0.55187707]
[1763045115933,0.21447555,101940.0,101930.0,0.55187707]
[1763045116189,0.21447555,101940.0,101930.0,0.22639308]
[1763045116398,0.00013939,101940.0,101930.0,0.83409106]
[1763045116606,0.00013939,101940.0,101930.0,0.33085452]
[1763045116823,0.00013939,101940.0,101930.0,0.8952825]
[1763045117041,0.00013939,101940.0,101930.0,0.05659057]
[1763045117279,0.01825985,101940.0,101930.0,0.19621308]
[1763045117500,0.00239842,101960.0,101950.0,0.19617459]
[1763045117707,0.00239842,101960.0,101950.0,1.12687257]
[1763045117915,0.00239842,101960.0,101950.0,0.87095815]
[1763045118117,0.00239842,101960.0,101950.0,0.90573902]
[1763045118327,0.09816915,102000.0,101990.0,0.19609765]
[1763045118537,0.09816915,102000.0,101990.0,0.54076164]
[1763045118538,0.00046768,102000.0,101990.0,0.54076164]
[1763045118960,0.00046768,102000.0,101990.0,0.06245]
[1763045119174,0.19654611,102000.0,101990.0,0.01918]
[1763045119382,0.19610248,101990.0,101960.0,0.51915493]
[1763045119592,0.1960994,101990.0,101970.0,0.19613531]
[1763045119815,0.1960994,101990.0,101970.0,0.23940558]
[1763045120040,0.19615535,101960.0,101950.0,0.21535298]
[1763045120244,0.19615535,101960.0,101950.0,0.02318]
[1763045120452,0.27202428,101990.0,101950.0,0.02318]
[1763045120453,0.27202428,101990.0,101960.0,0.19615231]
[1763045120658,0.27202428,101990.0,101950.0,0.55464682]
[1763045120659,0.19611718,101980.0,101950.0,0.01918]
[1763045120876,0.19615535,101960.0,101950.0,0.01918]
[1763045121157,0.19617459,101950.0,101940.0,0.19619383]
[1763045121377,0.04344,101970.0,101960.0,0.19615535]
[1763045121607,0.51079827,101990.0,101960.0,0.04327]
[1763045121829,0.20599621,101960.0,101920.0,0.24683453]
[1763045122042,0.19614675,101970.0,101950.0,0.01918]
[1763045122265,0.19614675,101970.0,101920.0,0.28030158]
[1763045122266,0.5543371,101960.0,101920.0,0.28030158]
[1763045122481,0.19619773,101940.0,101920.0,0.0145]
[1763045122702,0.04348,101960.0,101940.0,0.19618965]
[1763045122924,0.6290834,101980.0,101950.0,0.19617459]
[1763045123142,0.11618894,101980.0,101970.0,0.19613611]
[1763045123358,0.51082893,101990.0,101970.0,0.19613611]
[1763045123359,0.32577399,101990.0,101970.0,0.19613611]
[1763045123567,0.23965765,101990.0,101980.0,0.01918]
[1763045123777,0.00046768,101990.0,101980.0,0.21529688]
[1763045124017,0.00046768,101990.0,101980.0,0.54078087]
[1763045124446,0.19656533,101990.0,101980.0,0.01918]
[1763045124661,0.19856533,101990.0,101980.0,0.01918]
[1763045124906,0.19856533,101990.0,101970.0,0.21531611]
[1763045125115,0.19611688,101980.0,101970.0,0.25858611]
[1763045125340,0.00046768,101990.0,101980.0,0.19611688]
[1763045125549,0.19656533,101990.0,101980.0,0.04327]
[1763045125978,0.00046768,101990.0,101980.0,0.04327]
[1763045126187,0.19656533,101990.0,101970.0,0.21531437]
[1763045126400,0.19611688,101980.0,101970.0,0.25858437]
[1763045126618,0.00046768,101990.0,101980.0,0.24038688]
[1763045126820,0.00046768,101990.0,101980.0,0.52260087]
[1763045126996,0.00046768,101990.0,101980.0,0.24038688]
[1763045127200,0.00046768,101990.0,101980.0,0.23938688]
[1763045127616,0.00046768,101990.0,101980.0,0.80381486]
[1763045127836,0.00046768,101990.0,101980.0,1.12681486]
[1763045128020,0.00046768,101990.0,101980.0,0.56238688]
[1763045128218,0.00046768,101990.0,101980.0,1.12681486]
[1763045128823,0.00046768,101990.0,101980.0,1.12781486]
[1763045129025,0.00046768,101990.0,101980.0,0.36727]
[1763045129229,0.00046768,101990.0,101980.0,0.56338688]
[1763045129432,0.00121194,101990.0,101980.0,0.56338688]
[1763045129594,0.00121194,101990.0,101980.0,0.84560087]
[1763045129795,0.19730959,101990.0,101980.0,0.56338688]
[1763045129997,0.19730959,101990.0,101980.0,0.001]
[1763045130207,0.19730959,101990.0,101970.0,0.21531192]
[1763045130407,0.00046768,101990.0,101980.0,0.04448]
[1763045130617,0.00046768,101990.0,101980.0,0.24459688]
[1763045131019,0.19656533,101990.0,101980.0,0.04848]
[1763045131231,0.19656533,101990.0,101970.0,0.21530947]
[1763045131431,0.19656533,101990.0,101970.0,0.25978947]
[1763045131672,0.19656533,101990.0,101980.0,0.001]
[1763045131888,0.00046768,101990.0,101980.0,0.19711688]
[1763045132135,0.24008533,101990.0,101980.0,0.001]
[1763045132362,0.19611688,101980.0,101970.0,0.21531611]
[1763045132613,0.23963688,101980.0,101970.0,0.01918]
[1763045132827,0.23963688,101980.0,101970.0,0.21531611]
[1763045133234,0.23963688,101980.0,101960.0,0.21493535]
[1763045133724,0.23963688,101980.0,101970.0,0.19913611]
[1763045133725,0.04352,101980.0,101970.0,0.19913611]
[1763045133896,0.00046768,101990.0,101980.0,0.19611688]
[1763045134134,0.04394768,101990.0,101980.0,0.24059688]
[1763045134264,0.24004533,101990.0,101980.0,0.19611688]
[1763045134838,0.04394768,101990.0,101980.0,0.19611688]
[1763045135485,0.04394768,101990.0,101970.0,0.24061611]
[1763045135682,0.04394768,101990.0,101980.0,0.19611688]
[1763045136193,0.00046768,101990.0,101980.0,0.55135087]
[1763045136450,0.00046768,101990.0,101980.0,0.26913688]
[1763045136676,0.00121194,101990.0,101980.0,0.55135087]
[1763045136881,0.00121194,101990.0,101980.0,0.26913688]
[1763045137093,0.19730959,101990.0,101980.0,0.22465688]
[1763045137317,0.19611688,101980.0,101970.0,0.19613611]
[1763045138011,0.19613611,101970.0,101960.0,0.21493535]
[1763045138518,0.23957611,101970.0,101960.0,0.21493535]
[1763045138763,0.19615535,101960.0,101950.0,0.53795459]
[1763045139193,0.19615535,101960.0,101950.0,0.34178]
[1763045139543,0.19615535,101960.0,101920.0,0.21073173]
[1763045139544,0.19621289,101940.0,101920.0,0.21073173]
[1763045139827,0.19621289,101940.0,101920.0,0.3375]
[1763045139828,0.23965308,101930.0,101920.0,0.3375]
[1763045140062,0.19623233,101920.0,101910.0,0.0145]
[1763045140331,0.19623233,101920.0,101900.0,0.22019403]
[1763045140568,0.04322919,101910.0,101900.0,0.58767403]
[1763045140805,0.04322919,101910.0,101900.0,0.58781342]
[1763045141040,0.19625159,101910.0,101900.0,0.05872939]
[1763045141273,0.19625159,101910.0,101900.0,0.00013939]
[1763045141739,0.19625159,101910.0,101900.0,0.19641024]
[1763045141958,0.19625159,101910.0,101900.0,0.00013939]
[1763045142184,0.19625159,101910.0,101900.0,0.19641024]
[1763045142408,0.62005547,101920.0,101900.0,0.19641024]
[1763045142642,0.19625159,101910.0,101900.0,0.19641024]
[1763045142881,0.58638363,101950.0,101930.0,0.19620848]
[1763045143142,0.1162038,101950.0,101940.0,0.19619383]
[1763045143347,0.2576792,101950.0,101930.0,0.04448]
[1763045143565,0.2576792,101950.0,101940.0,0.19619383]
[1763045143783,0.23961459,101950.0,101940.0,0.04448]
[1763045144057,0.19619383,101940.0,101930.0,0.04448]
[1763045144285,0.19621308,101930.0,101920.0,0.0145]
[1763045144515,0.19623233,101920.0,101900.0,0.02629957]
[1763045144746,0.19625159,101910.0,101900.0,0.2408892]
[1763045144979,0.23969159,101910.0,101900.0,0.00013939]
[1763045145843,0.52179632,101920.0,101900.0,0.00013939]
[1763045145844,0.19623233,101920.0,101900.0,0.24089024]
[1763045146055,0.04344,101910.0,101900.0,0.24089024]
[1763045146509,0.20602373,101930.0,101920.0,0.19623233]
[1763045146716,0.06151001,101930.0,101920.0,0.21073233]
[1763045146974,0.01807001,101930.0,101920.0,0.05898]
[1763045147194,0.49649777,101930.0,101900.0,0.27700335]
[1763045147435,0.24933331,101950.0,101920.0,0.21073233]
[1763045147645,0.20596311,101960.0,101940.0,0.19618995]
[1763045147866,0.54972858,101960.0,101950.0,0.01878]
[1763045148296,0.19617459,101950.0,101940.0,0.19619383]
[1763045148509,0.19617459,101950.0,101940.0,0.04448]
[1763045148723,0.23965459,101950.0,101940.0,0.06326]
[1763045148930,0.23965459,101950.0,101940.0,0.01878]
[1763045149149,0.71187225,101950.0,101940.0,0.01878]
[1763045149368,0.7299443,101950.0,101940.0,0.01878]
[1763045149573,0.19621308,101930.0,101920.0,0.62169233]
[1763045149789,0.19621308,101930.0,101920.0,0.38211939]
[1763045150005,0.71191074,101930.0,101920.0,0.01463939]
[1763045150224,0.23969308,101930.0,101920.0,0.01463939]
[1763045150439,0.72997417,101930.0,101920.0,0.00013939]
[1763045150647,0.21427651,101930.0,101920.0,0.25535172]
[1763045150857,0.23965308,101930.0,101920.0,0.01463939]
[1763045151063,0.25771647,101930.0,101920.0,0.01463939]
[1763045151273,0.23965308,101930.0,101920.0,0.01463939]
[1763045151473,0.72993021,101930.0,101920.0,0.01663939]
[1763045151742,0.25771255,101930.0,101920.0,0.01663939]
[1763045151949,0.25771242,101930.0,101920.0,0.01663939]
[1763045152163,0.23965308,101930.0,101920.0,0.06111939]
[1763045152375,0.25770906,101930.0,101920.0,0.06111939]
[1763045152587,0.72992672,101930.0,101920.0,0.00013939]
[1763045153031,0.73092672,101930.0,101920.0,0.00013939]
[1763045153666,0.87244587,101930.0,101920.0,0.00013939]
[1763045154085,1.23886461,101930.0,101920.0,0.00013939]
[1763045154300,1.24788787,101930.0,101920.0,0.00013939]
[1763045154728,1.30788787,101930.0,101920.0,0.00013939]
[1763045155850,0.83567021,101930.0,101920.0,0.00013939]
[1763045156024,0.88909587,101930.0,101920.0,0.00013939]
[1763045156445,0.93244587,101930.0,101920.0,0.00013939]
[1763045156824,0.41687821,101930.0,101920.0,0.01326939]
[1763045157208,0.88909587,101930.0,101920.0,0.00013939]
[1763045157689,0.12249598,101930.0,101920.0,0.19637172]
[1763045157818,0.79091015,101930.0,101920.0,0.01326939]
[1763045158018,0.79091015,101930.0,101920.0,0.00013939]
[1763045158256,0.83426015,101930.0,101920.0,0.00013939]
[1763045158838,0.9324293,101930.0,101920.0,0.00013939]
[1763045159743,0.9618893,101930.0,101920.0,0.00013939]
[1763045159956,0.19627085,101900.0,101880.0,0.02869893]
[1763045160174,0.19627085,101900.0,101890.0,0.52998766]
[1763045160175,0.00014009,101900.0,101890.0,0.52998766]
[1763045160404,0.061,101930.0,101890.0,1.14826608]
[1763045160611,0.061,101930.0,101920.0,0.23849233]
[1763045160822,0.061,101930.0,101920.0,1.07736999]
[1763045160823,0.06,101930.0,101920.0,1.07736999]
[1763045161039,0.06,101930.0,101910.0,0.06108044]
[1763045161040,0.04344,101930.0,101910.0,0.06108044]
[1763045161245,0.19623716,101920.0,101910.0,0.323]
[1763045161463,0.19623716,101920.0,101900.0,0.04366]
[1763045161464,0.19623233,101920.0,101900.0,0.04366]
[1763045161676,0.04344,101910.0,101900.0,0.19627085]
[1763045161886,0.20602411,101930.0,101910.0,0.19625159]
[1763045162147,0.04344,101920.0,101910.0,0.19625159]
[1763045162366,0.20602411,101930.0,101910.0,0.19625159]
[1763045162582,0.04344,101920.0,101910.0,0.19625159]
[1763045163043,0.23967233,101920.0,101900.0,0.24974439]
[1763045163253,0.19623233,101920.0,101900.0,1.04496205]
[1763045163461,0.19625159,101910.0,101900.0,0.57274439]
[1763045163661,0.23969159,101910.0,101900.0,0.52908439]
[1763045164083,0.23969159,101910.0,101900.0,0.57274439]
[1763045164291,0.23969159,101910.0,101900.0,0.323]
[1763045164470,0.04344,101910.0,101900.0,0.323]
[1763045164675,0.001,101920.0,101900.0,0.59220085]
[1763045164914,0.001,101920.0,101910.0,0.19625159]
[1763045165126,0.001,101920.0,101910.0,1.06439925]
[1763045165340,0.19615764,101960.0,101940.0,0.19617492]
[1763045165598,0.04344,101950.0,101940.0,0.72744258]
[1763045165818,0.00014027,101960.0,101950.0,0.21156459]
[1763045166032,0.21439526,101960.0,101950.0,0.01539]
[1763045166242,0.19617459,101950.0,101940.0,0.01539]
[1763045166455,0.19619383,101940.0,101930.0,0.323]
[1763045166669,0.23959383,101940.0,101920.0,0.32568837]
[1763045166938,0.19621308,101930.0,101920.0,0.51392641]
[1763045167156,0.23959383,101940.0,101920.0,0.56094108]
[1763045167363,0.23959383,101940.0,101930.0,0.19621308]
[1763045167364,0.01813103,101940.0,101930.0,0.19621308]
[1763045167572,0.06153103,101940.0,101930.0,0.23937308]
[1763045168006,0.25772486,101940.0,101920.0,0.36470875]
[1763045168214,0.19623233,101920.0,101910.0,0.06109962]
[1763045168431,0.06153103,101920.0,101910.0,0.2226449]
[1763045168640,0.0434,101920.0,101910.0,0.30058577]
[1763045168890,0.23963233,101920.0,101910.0,0.06117418]
[1763045169168,0.19625159,101910.0,101890.0,0.07528418]
[1763045169420,0.19629011,101890.0,101880.0,0.06357354]
[1763045169669,0.69572426,101890.0,101880.0,0.00253945]
[1763045169871,0.73919426,101890.0,101880.0,0.00253945]
[1763045170127,0.07061649,101890.0,101880.0,0.19884883]
[1763045170575,0.0434,101890.0,101880.0,0.19884883]
[1763045170828,0.0434,101890.0,101880.0,0.22524039]
[1763045171042,0.0434,101890.0,101880.0,0.22524214]
[1763045171253,0.0434,101900.0,101890.0,0.19627166]
[1763045171468,0.72671242,101900.0,101880.0,0.26001586]
[1763045171671,0.66850777,101890.0,101880.0,0.02892746]